Cogmind - Beta 15 @@@ ROGUE MODE // 2025.10.18 @ 21:54:00 Player: Finestep Result: Smashed by cave-in Performance ------------- Evolutions (5) 2500 Regions Visited (8) 1600 Robots Destroyed (188) 940 Value Destroyed (5938) 5938 Prototype IDs (10) 200 Alien Tech Used (0) 0 Bonus (643) 643 TOTAL SCORE: 11821 Bonus ------- High Alert Combat Kills 643 Cogmind --------- Core Integrity 0/1000 Matter 210/300 Energy 100/100 System Corruption 60% Temperature Cool (0) Movement Core (50) Location -5/Upper Caves Parts ------- > --- POWER (2) -------- (None) > --- PROPULSION (6) --- (None) > --- UTILITY (7) ------ (None) > --- WEAPON (2) ------- (None) > --- INVENTORY (5) ---- (None) Peak State ------------ > --- POWER ------------ Light Fission Core Micro Fission Core > --- PROPULSION ------- Improved Flight Unit Improved Flight Unit Flightbrick > --- UTILITY ---------- Advanced Cooling System Machine Analyzer Enhanced Optical Array IFF Parser Transport Network Coupler Advanced Melee Analysis Suite Improved Medium Armor Plating Hacking Suite Hacking Suite > --- WEAPON ----------- Heavy Phase Cannon Heavy Pick > --- INVENTORY -------- Energy Well Cloaking Device Authchip [Propulsion] Improved Trap Extractor Rocket Array [Rating: 101] Favorites ----------- Power Micro Nuclear Core Engine Improved Deuterium Engine Power Core Micro Nuclear Core Propulsion Improved Treads Treads Improved Treads Leg Light Armored Exoskeleton Wheel Subdweller Monowheel Flight Unit Improved Flight Unit Utility High-capacity Storage Unit Device IFF Parser Storage High-capacity Storage Unit Processor Transport Network Coupler Hackware Hacking Suite Protection Improved Medium Armor Plating Weapon Advanced Beam Cannon Energy Gun Improved Arc Projector Energy Cannon Advanced Beam Cannon Ballistic Gun Assault Rifle Ballistic Cannon Battle Cannon Launcher Rocket Array Special Weapon Multitool Impact Weapon Impact Mace Slashing Weapon Makeshift Sword Piercing Weapon Spear Special Melee Weapon Datajack Build | -11 -10 -10 -8 -7 -6 -5 -5 -5 ------- Run | Yrd Mat Sub Mat Fac Fac Fac Upp Upp Slots Evolved 10 | . . . 4 2 2 2 . . Power 1 | . . . . 1 . . . . Propulsion 4 | . . . 2 . 2 . . . Utility 5 | . . . 2 1 . 2 . . Weapon . | . . . . . . . . . Parts Attached 130 | 7 9 16 19 53 15 8 . 3 Power 19 | 1 1 2 2 8 3 1 . 1 Engine 10 | 1 1 1 2 3 1 . . 1 Core 9 | . . 1 . 5 2 1 . . Reactor . | . . . . . . . . . Propulsion 24 | 2 4 4 3 9 2 . . . Treads 13 | . 4 3 2 4 . . . . Leg 4 | 2 . . . 2 . . . . Wheel 4 | . . 1 . 3 . . . . Hover . | . . . . . . . . . Flight 3 | . . . 1 . 2 . . . Utility 48 | 2 2 1 8 19 9 6 . 1 Device 20 | 1 . . 2 10 4 3 . . Storage 5 | 1 1 1 1 . 1 . . . Processor 8 | . 1 . 2 2 1 2 . . Hackware 5 | . . . . 1 2 1 . 1 Protection 10 | . . . 3 6 1 . . . Artifact . | . . . . . . . . . Weapon 39 | 2 2 9 6 17 1 1 . 1 Energy Gun 2 | . . . . 2 . . . . Energy Cannon 12 | . . 3 2 5 1 1 . . Ballistic Gun 8 | 2 . 3 1 2 . . . . Ballistic Cannon 5 | . . 2 1 2 . . . . Launcher 4 | . 1 . 1 2 . . . . Special Weapon 2 | . 1 . . 1 . . . . Impact Weapon 1 | . . . . 1 . . . . Slashing Weapon 1 | . . 1 . . . . . . Piercing Weapon 2 | . . . . 1 . . . 1 Special Melee Weapon 2 | . . . 1 1 . . . . Unidentified Prototypes 6 | . . . 2 4 . . . . Parts Lost 40 | . 1 2 1 13 1 1 . 21 Power 6 | . . 1 . 3 . . . 2 Propulsion 7 | . . . . 4 . . . 3 Utility 18 | . 1 . 1 2 1 . . 13 Weapon 9 | . . 1 . 4 . 1 . 3 Highest Loss Streak 9 | . 1 2 1 4 1 1 . 9 To Critical Strikes . | . . . . . . . . . Average Backups 13 | 3 10 15 16 16 5 4 5 1 Power . | . 1 . 1 1 . . . . Propulsion 2 | 1 4 4 3 3 . . . . Utility 4 | . 1 3 4 5 3 3 4 1 Weapon 4 | 1 3 6 6 4 2 1 1 . Tool/Special . | . . . . . . . . . Unused Backups 27 | . 3 3 8 8 5 . . . Power 4 | . . . . 4 . . . . Propulsion 2 | . 1 1 . . . . . . Utility 7 | . 1 1 1 2 2 . . . Weapon 14 | . 1 1 7 2 3 . . . Tool/Special . | . . . . . . . . . Average Slot Usage (%) 86 | . 94 99 91 89 82 81 84 35 Engine 6 | . 14 6 9 5 7 . . 1 Core 4 | . . 7 . 6 3 10 10 1 Treads 15 | . 22 19 35 13 . . . . Leg 1 | . 5 . . 3 . . . . Wheel 3 | . . 8 . 5 . . . . Flight 2 | . . . . . 16 15 15 6 Device 6 | . 5 . . 9 19 11 10 4 Storage 8 | . 14 14 9 7 . . . . Processor 11 | . 3 14 10 12 10 19 21 6 Hackware 1 | . . . . . 4 8 10 4 Protection 4 | . . . 8 6 5 4 5 1 Energy Cannon 6 | . . 8 9 7 . 1 5 3 Ballistic Gun 6 | . 27 14 1 2 . . . . Ballistic Cannon 2 | . . 3 6 2 . . . . Peak Build Rating 101 | 9 10 22 32 55 84 100 100 101 Average Rating 37 | 5 8 15 29 44 81 93 100 48 On Entrance 43 | . 9 9 17 31 45 83 100 100 Naked Turns 373 | . . . . . . . . 373 Heaviest Build 81 | 14 29 57 77 80 81 34 34 38 Greatest Support 92 | 20 40 46 92 92 34 34 34 34 Greatest Overweight (x) 6 | . . 2 1 6 2 . . 1 Average Overweight (x) . | . . 1 . 1 . . . . Largest Inventory Capacity 20 | 8 15 20 20 20 20 5 5 5 Average Capacity 15 | 7 12 18 20 20 5 5 5 5 Most Carried 20 | 5 15 20 20 20 19 5 5 5 Average Carried 15 | 3 10 18 19 19 5 4 5 1 Final Capacity 20 | 8 15 20 20 20 5 5 5 5 Final Carried 20 | 5 15 20 20 20 5 5 5 . Class Distribution -------------------- 77% | Mutant 15% | Scavenger-Mutant 4% | Hacker-Scout Dominant Class ---------------- Mutant | -10/Materials Mutant | -10/Subcaves Mutant | -8/Materials Mutant | -7/Factory Scavenger-Mutant | -6/Factory Hacker-Scout | -5/Factory Hacker-Scout | -5/Upper Caves Mutant | -5/Upper Caves Resources | -11 -10 -10 -8 -7 -6 -5 -5 -5 ----------- Run | Yrd Mat Sub Mat Fac Fac Fac Upp Upp Matter Collected 5338 | 324 544 606 869 2235 591 95 47 27 Remotely . | . . . . . . . . . Salvage Created 8375 | 152 739 657 1546 3505 1308 355 113 . Parts 421 | 14 38 42 73 168 58 22 6 . Haulers Intercepted 15 | . 2 . 5 6 1 1 . . Recyclers Shooed 17 | 1 3 . 3 9 1 . . . Parts Field Recycled . | . . . . . . . . . Retrieved Matter . | . . . . . . . . . Parts Self-Destructed 10 | . . 10 . . . . . . Prevented . | . . . . . . . . . Kills | -11 -10 -10 -8 -7 -6 -5 -5 -5 ------- Run | Yrd Mat Sub Mat Fac Fac Fac Upp Upp Combat Hostiles Destroyed 109 | . 13 12 19 45 17 3 . . Melee 5 | . . 1 . 1 . 3 . . Guns 23 | . 8 7 . 8 . . . . Cannons 55 | . . 4 16 35 . . . . AOE 24 | . 5 . 2 . 17 . . . Classes Destroyed 19 | 2 6 3 3 3 1 . 1 . Worker 10 | . . . 1 5 4 . . . Builder 4 | . 2 . 2 . . . . . Tunneler 5 | 4 1 . . . . . . . Hauler 15 | . 2 . 5 6 1 1 . . Recycler 26 | 1 1 . 5 14 5 . . . Mechanic 2 | . . . . . 1 1 . . Operator 6 | . 1 . 1 2 1 1 . . Watcher 11 | . 1 . 3 5 2 . . . Swarmer 19 | . . . . 11 8 . . . Grunt 47 | . 10 . 11 17 9 . . . Brawler 2 | . . . 2 . . . . . Duelist 1 | . . . . 1 . . . . Sentry 12 | . . 1 5 5 . 1 . . Hunter 3 | . . . 1 2 . . . . Programmer 11 | . . . . 9 . 2 . . Artisan 1 | . . 1 . . . . . . Cobbler 1 | . . 1 . . . . . . Subdweller 14 | . 3 11 . . . . . . Samaritan 3 | . . . . . . . 3 . Best Kill Streak 12 | 4 5 2 9 8 12 1 . . Combat Bots Only 9 | . 3 2 7 4 9 1 . . Max Kills in Single Turn 7 | 1 5 2 2 2 7 1 1 . Gunslinging 1 | . . 1 . . . . . . Exploded 7 | . 2 . 1 . 7 . . . Melee 1 | . . 1 . 1 . 1 . . Uniques/NPCs Destroyed . | . . . . . . . . . Combat | -11 -10 -10 -8 -7 -6 -5 -5 -5 -------- Run | Yrd Mat Sub Mat Fac Fac Fac Upp Upp Hostile Shots Fired 716 | . 49 52 70 441 50 54 . . Missed 212 | . 11 11 11 131 29 19 . . Hits 504 | . 38 41 59 310 21 35 . . Melee 8 | . . . . 5 3 . . . Projectile 496 | . 38 41 59 305 18 35 . . Critical Strikes 18 | . 1 1 3 10 1 2 . . Damage Taken 11377 | . 511 840 897 4081 467 810 . 3771 Core 1914 | . 75 146 69 538 71 38 . 977 Absorbed by Shields . | . . . . . . . . . Regen/Repaired (Parts) 275 | . . . 14 165 . 96 . . Core Remaining (%) 62 | 100 . 11 87 23 91 . . . Volleys Fired 496 | 16 75 61 77 221 9 13 . 24 Largest 2 | 2 2 2 2 2 1 1 . 1 Hottest 148 | 40 120 113 113 148 45 90 . 90 Shots Fired 920 | 32 147 107 151 436 9 14 . 24 Gun 384 | 32 143 61 5 143 . . . . Cannon 513 | . . 41 143 291 . 14 . 24 Launcher 19 | . 3 5 3 1 7 . . . Special 4 | . 1 . . 1 2 . . . Kinetic 502 | 32 143 75 74 178 . . . . Thermal 352 | . 1 27 74 210 2 14 . 24 Explosive 19 | . 3 5 3 1 7 . . . Electromagnetic 47 | . . . . 47 . . . . Robot Hit Streak 16 | 11 9 16 12 15 1 . . . Robot Miss Streak 6 | 3 6 2 3 5 2 1 . . Penetration Max 1 | . . . . 1 . . . . Secondary Targets 3 | . . 1 . 2 . . . . Max Gunslinging Chain 1 | . . 1 . 1 . . . . Shots Hit Robots 590 | 21 91 62 95 277 18 23 3 . Core Hits 318 | 7 41 25 48 117 68 9 3 . Critical Kills 2 | . . 1 1 . . . . . Critical Parts Destroyed 1 | . 1 . . . . . . . Critical Strikes 12 | . 1 1 2 4 . 4 . . Meltdown 1 | . . . 1 . . . . . Destroy 2 | . 1 1 . . . . . . Blast 4 | . . . 1 3 . . . . Impale 5 | . . . . 1 . 4 . . Melee Attacks 123 | . . 23 . 12 48 35 4 1 Impact . | . . . . . . . . . Slashing 27 | . . 23 . 4 . . . . Piercing 96 | . . . . 8 48 35 4 1 Sneak Attacks 15 | . . . . 1 9 2 3 . Combat Hostiles . | . . . . . . . . . Follow-up Attacks . | . . . . . . . . . Damage Inflicted 15867 | 229 1335 1230 2515 6194 2802 1392 170 . Guns 3163 | 229 960 473 42 1459 . . . . Cannons 7485 | . . 583 2286 4616 . . . . Explosions 2880 | . 375 . 187 . 1842 476 . . Melee 2339 | . . 174 . 119 960 916 170 . Ramming . | . . . . . . . . . Kinetic 5254 | 229 960 739 903 2423 . . . . Thermal 5878 | . . 317 1425 3287 373 476 . . Explosive 1949 | . 375 . 187 . 1387 . . . Electromagnetic 447 | . . . . 365 82 . . . Impact . | . . . . . . . . . Slashing 174 | . . 174 . . . . . . Piercing 2165 | . . . . 119 960 916 170 . Highest Corruption 60 | . . . . 4 . 2 2 60 Average Corruption 10 | . . . . 2 . 1 2 35 Corruption Purged 4 | . . . . 4 . . . . Corruption Blocked . | . . . . . . . . . Effects 116 | . . . . 61 . 4 1 50 Message Errors 26 | . . . . 12 . 1 1 12 Matter Fused 28 | . . . . 14 . 1 . 13 Heat Flow Errors 20 | . . . . 10 . 1 . 9 Energy Discharges 12 | . . . . 8 . . . 4 Parts Fused 1 | . . . . 1 . . . . Data Loss (minor) 13 | . . . . 6 . . . 7 Data Loss (major) 6 | . . . . 3 . . . 3 Misfires 7 | . . . . 6 . 1 . . Alerts 2 | . . . . . . . . 2 Weapon Failures 1 | . . . . 1 . . . . Overload Shots . | . . . . . . . . . Overflow Damage 428 | . . 5 48 51 124 200 . . Projectiles 88 | . . 5 48 35 . . . . Explosions 151 | . . . . . 95 56 . . Melee 189 | . . . . 16 29 144 . . Knockbacks 20 | . . 2 8 10 . . . . Impact . | . . . . . . . . . Kinetic 19 | . . 2 8 9 . . . . Secondary 1 | . . . . 1 . . . . Self-Inflicted Damage 75 | . . . . . . 75 . . Shots 1 | . . . . . . 1 . . Rammed . | . . . . . . . . . Targets Rammed . | . . . . . . . . . Kicked . | . . . . . . . . . Crushed . | . . . . . . . . . Highest Temperature 602 | . 20 30 297 602 . 290 . 259 Average Temperature 105 | . 8 11 81 120 . 145 . 100 Received Heat Transfer 2049 | . 255 159 477 1041 18 99 . . Effects 19 | . . . . 19 . . . . Shutdowns 5 | . . . . 5 . . . . Energy Bleed 3 | . . . . 3 . . . . Interference 3 | . . . . 3 . . . . Matter Decay 3 | . . . . 3 . . . . Short Circuit 2 | . . . . 2 . . . . Damage (minor) 2 | . . . . 2 . . . . Damage (core) 1 | . . . . 1 . . . . Siege Activations . | . . . . . . . . . Martial Activations . | . . . . . . . . . Shielding Activations . | . . . . . . . . . Robots Disrupted 2 | . . . . 2 . . . . Combat Hostiles 2 | . . . . 2 . . . . Robots Corrupted . | . . . . . . . . . Combat Hostiles . | . . . . . . . . . Parts Fried 1 | . . . . 1 . . . . Impact Corruptions . | . . . . . . . . . Robots Melted 2 | . . . 1 1 . . . . Combat Hostiles 2 | . . . 1 1 . . . . Parts Melted 22 | . . . 2 19 1 . . . Heat Transferred 8975 | . . 518 2109 5798 300 250 . . Parts Sabotaged . | . . . . . . . . . Parts Stolen . | . . . . . . . . . Parts Stripped . | . . . . . . . . . Power Chain Reactions 1 | . . . . . 1 . . . Alert | -11 -10 -10 -8 -7 -6 -5 -5 -5 ------- Run | Yrd Mat Sub Mat Fac Fac Fac Upp Upp Maximum Alert Level 4 | . . . 1 2 4 2 . . Low Security (%) 43 | 100 100 . 75 29 . . . . Level 1 25 | . . . 25 33 9 44 . . Level 2 25 | . . . . 37 30 55 . . Level 3 3 | . . . . . 46 . . . Level 4 1 | . . . . . 14 . . . Level 5 . | . . . . . . . . . High Security . | . . . . . . . . . Max Security . | . . . . . . . . . Peak Influence 1311 | 10 117 . 321 675 1311 654 . . Initial 635 | . . . . 128 323 635 . . Average 304 | 1 49 . 106 351 767 452 . . Influence Increases 4857 | 25 395 20 728 1592 1469 628 . . Destroy 0b10 Robot/C 1900 | . 200 20 380 900 340 60 . . Destroy 0b10 Robot/NC 395 | 25 40 . 85 160 70 15 . . Destroy Leader 500 | . 56 . 116 250 56 22 . . Trap Triggered on 0b10 10 | . . . . . 10 . . . Successful Hack 216 | . 18 . 17 34 85 62 . . Select Force Hacks 170 | . . . 30 80 30 30 . . Disable Machine 390 | . . . 45 105 150 90 . . Anti-Garrison Action 350 | . . . . . 350 . . . Destroy Structure 296 | . 21 . 40 33 108 94 . . Partial Spotted 105 | . . . 15 . 30 60 . . Lose Combat Pursuer 525 | . 60 . . 30 240 195 . . Influence Decreases 4857 | 25 395 20 444 1216 831 1287 287 352 Entered New Map 1461 | . . . . 156 337 663 237 68 Time Decay 2466 | 25 385 20 434 770 334 254 50 194 Lost Part 260 | . 10 . 10 130 10 10 . 90 Lost Ally 70 | . . . . 10 . 60 . . Purge Threat 600 | . . . . 150 150 300 . . Squads Dispatched 46 | . 2 . 5 19 15 5 . . Investigation 21 | . 1 . 5 5 7 3 . . Extermination 10 | . . . . 7 2 1 . . Reinforcement 7 | . 1 . . 3 2 1 . . Assault 5 | . . . . 1 4 . . . Garrison 3 | . . . . 3 . . . . Intercept . | . . . . . . . . . Searches Triggered . | . . . . . . . . . Construction Impeded 1 | . . . . 1 . . . . Haulers Reinforced 2 | . . . . 1 . 1 . . Active Scanning Responses . | . . . . . . . . . Cargo Convoy Interrupts . | . . . . . . . . . Stealth | -11 -10 -10 -8 -7 -6 -5 -5 -5 --------- Run | Yrd Mat Sub Mat Fac Fac Fac Upp Upp Distress Signals 15 | . 3 . 2 6 3 1 . . Communications Jammed . | . . . . . . . . . Distress Signals . | . . . . . . . . . Times Spotted 209 | . 27 13 31 68 44 26 . . Peak Tracking Total 10 | . 5 2 4 5 10 7 . . Tactical Retreats 21 | . 3 . . 2 10 6 . . Traps | -11 -10 -10 -8 -7 -6 -5 -5 -5 ------- Run | Yrd Mat Sub Mat Fac Fac Fac Upp Upp Traps Triggered 6 | . 1 . 1 3 1 . . . Indirectly . | . . . . . . . . . Trap Hack Attempts 103 | . . . 55 48 . . . . Triggered . | . . . . . . . . . Disarmed 1 | . . . 1 . . . . . Reprogrammed 10 | . . . 5 5 . . . . Reused 1 | . . . . . 1 . . . Traps Extracted 11 | . . . 6 5 . . . . Installed 8 | . . . 1 6 1 . . . Triggered 1 | . . . . . 1 . . . Most Traps Carried 6 | . . . 5 6 4 3 3 3 Objects Rigged 9 | . . . . . 5 4 . . Exploded 4 | . . . . . 2 2 . . Machines | -11 -10 -10 -8 -7 -6 -5 -5 -5 ---------- Run | Yrd Mat Sub Mat Fac Fac Fac Upp Upp Machines Disabled 27 | . . . 3 7 11 6 . . Max in Single Turn 5 | . . . 1 1 5 2 . . Garrison Access 3 | . . . . . 3 . . . Machines Repaired . | . . . . . . . . . Machines Dismantled . | . . . . . . . . . Machines Sabotaged 1 | . . . . 1 . . . . Overloaded Fab Kills . | . . . . . . . . . Hacking | -11 -10 -10 -8 -7 -6 -5 -5 -5 --------- Run | Yrd Mat Sub Mat Fac Fac Fac Upp Upp Machines Accessed 62 | . 4 . 7 22 17 12 . . Terminals 35 | . 4 . 4 12 8 7 . . Fabricators 7 | . . . . 3 2 2 . . Repair Stations 7 | . . . 1 3 2 1 . . Recycling Units 5 | . . . 1 1 2 1 . . Scanalyzers 5 | . . . 1 3 . 1 . . Garrison Access 3 | . . . . . 3 . . . Total Hacks 144 | . 13 . 16 48 36 31 . . Successful 66 | . 6 . 5 18 18 19 . . Failed 77 | . 6 . 11 30 18 12 . . Catastrophic 21 | . 2 . 3 7 5 4 . . Database Lockouts 1 | . 1 . . . . . . . Manual 79 | . 8 . 12 24 19 16 . . Terminals 83 | . 13 . 11 23 19 17 . . Fabricators 14 | . . . . 4 5 5 . . Repair Stations 17 | . . . 1 7 4 5 . . Recycling Units 12 | . . . 1 4 4 3 . . Scanalyzers 14 | . . . 3 10 . 1 . . Garrison Access 4 | . . . . . 4 . . . Terminal Hacks 25 | . 5 . 3 7 5 5 . . Record 1 | . . . . . . 1 . . Part Schematic 1 | . 1 . . . . . . . Robot Schematic 1 | . . . . 1 . . . . Prototype ID Bank 2 | . 2 . . . . . . . Level Access Points 1 | . . . . . 1 . . . Branch Access Points 4 | . . . 1 1 1 1 . . Machine Index 1 | . . . . . 1 . . . Terminal Index 3 | . . . . 1 1 1 . . Unreport Threat 4 | . . . . 1 1 2 . . Locate Traps 1 | . . . . 1 . . . . Hauler Manifests 2 | . . . 1 1 . . . . Zone Layout 4 | . 2 . 1 1 . . . . Fabricator Hacks 6 | . . . . 1 1 4 . . Network Status 4 | . . . . 1 1 2 . . Load Schematic 1 | . . . . . . 1 . . Build 1 | . . . . . . 1 . . Repair Station Hacks 6 | . . . . 2 . 4 . . Scan Component 3 | . . . . 1 . 2 . . Repair 3 | . . . . 1 . 2 . . Recycling Unit Hacks . | . . . . . . . . . Scanalyzer 5 | . . . . 5 . . . . Insert Component 3 | . . . . 3 . . . . Analyze 2 | . . . . 2 . . . . Garrison Access Hacks 1 | . . . . . 1 . . . Seal Access 1 | . . . . . 1 . . . Unauthorized Hacks 23 | . 1 . 2 3 11 6 . . Terminals 10 | . 1 . . 2 4 3 . . Track 3 | . 1 . . . 2 . . . Assimilate 3 | . . . . 1 . 2 . . Detonate 3 | . . . . . 2 1 . . Sabotage 1 | . . . . 1 . . . . Fabricators 3 | . . . . . 2 1 . . Liberate 1 | . . . . . 1 . . . Fabnet 1 | . . . . . . 1 . . Recompile 1 | . . . . . 1 . . . Repair Stations 2 | . . . 1 . 1 . . . Mechanics 1 | . . . . . 1 . . . Patch 1 | . . . 1 . . . . . Recycling Units 5 | . . . 1 . 3 1 . . Reject 1 | . . . . . 1 . . . Mask 2 | . . . . . 1 1 . . Tunnel 2 | . . . 1 . 1 . . . Scanalyzers 2 | . . . . 1 . 1 . . Extract 2 | . . . . 1 . 1 . . Garrison Access 1 | . . . . . 1 . . . Jam 1 | . . . . . 1 . . . Data Cores Recovered 2 | . . . 1 1 . . . . Used . | . . . . . . . . . Hacking Detections 47 | . 4 . 5 17 12 9 . . Full Trace Events 11 | . . . 2 3 4 2 . . Feedback Events 1 | . . . . . 1 . . . Hackware Fried 1 | . . . . . 1 . . . Feedback Blocked . | . . . . . . . . . Robot Schematics Acquired 1 | . . . . 1 . . . . Robots Built 3 | . . . . . . 3 . . Authchips . | . . . . . . . . . Time 67 | . . . . . . 67 . . Total Robot Build Rating 12 | . . . . . . 12 . . Part Schematics Acquired 8 | . 1 . . 3 . 4 . . Parts Built . | . . . . . . . . . Authchips . | . . . . . . . . . Time . | . . . . . . . . . Total Part Build Rating . | . . . . . . . . . Parts Repaired 3 | . . . . 1 . 2 . . Time 98 | . . . . 22 . 76 . . Parts Recycled . | . . . . . . . . . Recycled Matter . | . . . . . . . . . Retrieved Matter . | . . . . . . . . . Retrieved Components . | . . . . . . . . . Parts Scanalyzed 2 | . . . . 2 . . . . Part Schematics Acquired 2 | . . . . 2 . . . . Parts Damaged . | . . . . . . . . . Bothacking | -11 -10 -10 -8 -7 -6 -5 -5 -5 ------------ Run | Yrd Mat Sub Mat Fac Fac Fac Upp Upp Used RIF Installer . | . . . . . . . . . Robots Hacked . | . . . . . . . . . Non-combat . | . . . . . . . . . Combat . | . . . . . . . . . Robot Hacks Applied . | . . . . . . . . . Relay Couplers Released 8 | . . . . 3 5 . . . Machine Destruction 5 | . . . . . 5 . . . Programmers 3 | . . . . 3 . . . . Fabnet Peak Effective % . | . . . . . . . . . Robots Rewired . | . . . . . . . . . Allies Hacked . | . . . . . . . . . Hacks Repelled . | . . . . . . . . . Allies | -11 -10 -10 -8 -7 -6 -5 -5 -5 -------- Run | Yrd Mat Sub Mat Fac Fac Fac Upp Upp Total Allies 5 | . . . . 1 . 4 . . Largest Group 3 | . . . . 1 . 3 1 . Highest-Rated Group 90 | . . . . 26 . 90 26 . Highest-Rated Ally 30 | . . . . 26 . 30 26 . Total Orders . | . . . . . . . . . Ally Attacks 4 | . . . . . . 4 . . Total Damage 143 | . . . . . . 143 . . Kills . | . . . . . . . . . Allies Corrupted . | . . . . . . . . . Allies Melted . | . . . . . . . . . Intel | -11 -10 -10 -8 -7 -6 -5 -5 -5 ------- Run | Yrd Mat Sub Mat Fac Fac Fac Upp Upp Active Infowar (turns) 6763 | 18 383 . . 4497 747 556 109 453 Optics 2009 | . . . . 311 712 556 109 321 Sensors 1054 | . . . . 1054 . . . . IFF 1760 | . . . . . 740 556 109 355 Terrain 401 | 18 383 . . . . . . . T.N.C. 4865 | . . . . 3132 747 556 109 321 Machine Analysis 1060 | . . . . . . 544 109 407 Cloaking 109 | . . . . . . 63 . 46 Robot Analysis Total . | . . . . . . . . . Derelict Logs Recovered 2 | . . 1 . . . . 1 . Drone Launches . | . . . . . . . . . Drone Recoveries . | . . . . . . . . . Exploration | -11 -10 -10 -8 -7 -6 -5 -5 -5 ------------- Run | Yrd Mat Sub Mat Fac Fac Fac Upp Upp Turns Passed 12723 | 155 1018 2792 1696 4526 747 556 109 1124 Spaces Moved 8296 | 84 478 1758 800 2169 1327 976 289 415 Core 7 | 7 . . . . . . . . Treads 2139 | . 375 560 800 404 . . . . Legs 465 | 77 103 . . 285 . . . . Wheels 2678 | . . 1198 . 1480 . . . . Hover . | . . . . . . . . . Flight 3007 | . . . . . 1327 976 289 415 Fastest Speed 34 | 50 120 130 160 111 34 34 34 34 Average Speed 108 | 114 151 140 160 151 35 34 34 58 Slowest Speed 360 | 120 160 240 240 360 154 34 34 94 Overloaded Moves . | . . . . . . . . . Propulsion Burnouts . | . . . . . . . . . Robots Hopped 20 | . . . . . 16 4 . . Potential Cave-ins . | . . . . . . . . . Cave-ins Triggered 19 | . . . . . . . . 19 Exploration Rate (%) 48 | 4 75 73 55 53 38 31 54 57 Regions Visited 8 Branch Regions 3 Pre-discovered Areas 3 | . . 1 1 . 1 . . . Known Exits Taken 3 | . . . . 1 1 1 . . Unknown Exits Taken 5 | 1 1 1 1 . . . 1 . Scrap Searched 17 | . . 13 . . . . 2 2 Spaces Dug 95 | . 1 23 1 21 30 13 1 5 Terrain Destroyed 391 | . 27 67 37 31 145 58 1 25 Melee 47 | . . 10 . 8 21 6 1 1 Projectile 73 | . 1 4 22 10 . 12 . 24 AOE 271 | . 26 53 15 13 124 40 . . Terrain Rammed . | . . . . . . . . . Walls Destroyed . | . . . . . . . . . Machines Disabled . | . . . . . . . . . Actions | -11 -10 -10 -8 -7 -6 -5 -5 -5 --------- Run | Yrd Mat Sub Mat Fac Fac Fac Upp Upp Total 10920 | 111 639 1948 1073 2967 1494 1122 293 1273 Wait 1432 | . 45 49 62 310 60 83 1 822 Move 8254 | 83 477 1757 799 2168 1300 967 288 415 Hop 14 | . . . . . 10 4 . . Pick Up 99 | 5 18 12 26 32 5 . . 1 Fast Attach 74 | 7 1 7 6 32 13 7 . 1 Attach 42 | . 2 2 10 12 10 1 . 5 Detach 4 | . . . . 2 1 1 . . Swap 109 | . 10 20 11 56 7 4 . 1 Drop 141 | . 11 17 26 54 25 5 . 3 Fire 496 | 16 75 61 77 221 9 13 . 24 Melee 123 | . . 23 . 12 48 35 4 1 Ram . | . . . . . . . . . Kick . | . . . . . . . . . Crush . | . . . . . . . . . Escape Stasis . | . . . . . . . . . Rewire 6 | . . . . 6 . . . . Trap 111 | . . . 56 54 1 . . . Miscellaneous 15 | . . . . 8 5 2 . . Route ------- -11/Scrapyard -10/Materials (discovered 4 exits: [*Mat x2] / [*Min] / [*Sub]) -10/Subcaves -8/Materials (discovered 3 exits: *Fac x2 / Sto) -7/Factory (discovered 4 exits: *Fac x2 / *Low x2) -6/Factory (discovered 6 exits: *Fac x4 / Low x2) -5/Factory (discovered 2 exits: *Upp x2) -5/Upper Caves -5/Upper Caves History --------- Turn | Location | Event 8 | -11/Scrapyard | Discovered new exit (range 15) 156 | -11/Scrapyard | Entered Materials 179 | -10/Materials | Central database locked down 311 | -10/Materials | Build established: Mutant 580 | -10/Materials | Discovered new exit (range 12) 647 | -10/Materials | Discovered new exit (range 17) 656 | -10/Materials | Derelicts attacked the area 1081 | -10/Materials | Discovered new exit (range 5) 1148 | -10/Materials | Discovered new exit (range 15) 1174 | -10/Materials | Entered Subcaves 1288 | -10/Subcaves | Discovered new exit (range 8) 2095 | -10/Subcaves | A Subdweller sparked back to life 2134 | -10/Subcaves | Found Prototype Flight Unit 2176 | -10/Subcaves | A swath of the cavern ceiling suddenly collapsed 2199 | -10/Subcaves | Shifting Twisted Machinery released Spk. Treads 2202 | -10/Subcaves | Shifting Twisted Machinery released Mak. Sword 2343 | -10/Subcaves | Core integrity fell below 50% 2558 | -10/Subcaves | Ambushed by angry Subdweller bent on revenge 3204 | -10/Subcaves | Shifting Twisted Machinery released Flamer 3256 | -10/Subcaves | Disturbed a concealed Subdweller 3523 | -10/Subcaves | Core integrity fell below 20% 3809 | -10/Subcaves | Learned location of Mines (-9) 3966 | -10/Subcaves | Entered Materials 3966 | -8/Materials | Evolved 4 slots: Propulsion x2, Utility x2 4373 | -8/Materials | Discovered new exit (range 10) 5305 | -8/Materials | Destroyed 7 combat bots 5555 | -8/Materials | Identified exit to Storage 5594 | -8/Materials | Discovered new exit (range 16) 5662 | -8/Materials | Entered Factory 5662 | -7/Factory | Evolved 2 slots: Power x1, Utility x1 5845 | -7/Factory | Identified exit to Lower Caves 6777 | -7/Factory | Discovered new exit (range 4) 6844 | -7/Factory | Identified exit to Factory 7233 | -7/Factory | Discovered exit to Factory (range 15) 7420 | -7/Factory | Lost 4 parts (1p2n1w) 7457 | -7/Factory | Allied Derelicts emerged from ambush trap array 7511 | -7/Factory | P-60 Hacker assimilated allied Q5-X86(g) 7988 | -7/Factory | Found Prototype Launcher 7988 | -7/Factory | Identified Rocket Array 8387 | -7/Factory | Repaired Imp. Medium Armor Plating 8404 | -7/Factory | Garrison activated, responded to threat 8782 | -7/Factory | Identified Flightbrick 8862 | -7/Factory | Build established: Scavenger-Mutant 9083 | -7/Factory | Core integrity fell below 50% 9917 | -7/Factory | Build established: Mutant 10062 | -7/Factory | First assault squad dispatched 10188 | -7/Factory | Entered another Factory area 10188 | -6/Factory | Evolved 2 slots: Propulsion x2 10193 | -6/Factory | Attached Flightbrick, gained temporary slots: Utility x3 10515 | -6/Factory | Identified exit to Factory 10639 | -6/Factory | Identified exit to Lower Caves 10661 | -6/Factory | Hacking Suite fried by hacking feedback 10715 | -6/Factory | Destroyed 9 combat bots 10859 | -6/Factory | Destroyed 8 combat bots 10888 | -6/Factory | First assault squad dispatched 10935 | -6/Factory | Entered another Factory area 10935 | -5/Factory | Evolved 2 slots: Utility x2 10953 | -5/Factory | Identified exit to Upper Caves 11017 | -5/Factory | Repaired Multitool 11063 | -5/Factory | Repaired Imp. Medium Armor Plating 11300 | -5/Factory | Fabricated L-41 Fighter? 11491 | -5/Factory | Entered Upper Caves 11491 | -5/Upper Caves | Accompanied by 1 ally 11534 | -5/Upper Caves | Encountered a Warlord checkpoint 11561 | -5/Upper Caves | Learned Factory emergency access door positions 11583 | -5/Upper Caves | Discovered new exit (range 18) 11600 | -5/Upper Caves | Entered another Upper Caves area 11631 | -5/Upper Caves | Entered a destroyed Warlord outpost 11921 | -5/Upper Caves | Crushed by falling debris 11921 | -5/Upper Caves | System corruption reached 10% 11950 | -5/Upper Caves | Crushed by falling debris 11953 | -5/Upper Caves | Crushed by falling debris 11955 | -5/Upper Caves | Crushed by falling debris 11963 | -5/Upper Caves | Crushed by falling debris 11986 | -5/Upper Caves | Lost 9 parts (2p1n5u1w) 12007 | -5/Upper Caves | Crushed by falling debris 12007 | -5/Upper Caves | System corruption reached 30% 12038 | -5/Upper Caves | Lost 5 parts (1n4u) 12088 | -5/Upper Caves | Crushed by falling debris 12142 | -5/Upper Caves | Crushed by falling debris 12169 | -5/Upper Caves | Crushed by falling debris 12275 | -5/Upper Caves | Crushed by falling debris 12277 | -5/Upper Caves | Crushed by falling debris 12277 | -5/Upper Caves | Core integrity fell below 50% 12295 | -5/Upper Caves | Crushed by falling debris 12302 | -5/Upper Caves | Crushed by falling debris 12333 | -5/Upper Caves | Lost 4 parts (1n2u1w) 12352 | -5/Upper Caves | Crushed by falling debris 12389 | -5/Upper Caves | Crushed by falling debris 12437 | -5/Upper Caves | Crushed by falling debris 12437 | -5/Upper Caves | Core integrity fell below 20% 12509 | -5/Upper Caves | Crushed by falling debris 12696 | -5/Upper Caves | Crushed by falling debris 12725 | -5/Upper Caves | Crushed by falling debris 12725 | -5/Upper Caves | Smashed by cave-in Last Messages --------------- 12437_ Crushed by falling debris. 12447_ System corrupted: Matter fused (-6). 12462_ PZWN=HOEHQE=V,|TZAAPT=ZI7CY #L3GGEDLV 12509_ The unstable cave ceiling collapses. 12509_ Crushed by falling debris. 12523_ System corrupted: Component data lost. 12583_ System corrupted: Matter fused (-7). 12601_ System corrupted: Component data lost. 12616_ Q2T JPJ3YGH0